[Event "Live Chess"]
[Site "Chess.com"]
[Date "2023.05.20"]
[Round "-"]
[White "VovaOvchar1990"]
[Black "M00nDr4g0n"]
[Result "1/2-1/2"]
[WhiteElo "1223"]
[BlackElo "882"]
[TimeControl "300"]
[EndTime "14:12:28 PDT"]
[Termination "Game drawn - timeout vs insufficient material"]

1. e4 {[%clk 0:04:57.5]} 1... d6 {[%clk 0:04:54.3]} 2. Bc4 {[%clk 0:04:56.3]}
2... g6 {[%clk 0:04:44]} 3. Nc3 {[%clk 0:04:51.4]} 3... Bg7 {[%clk 0:04:41.1]}
4. d4 {[%clk 0:04:48]} 4... Nf6 {[%clk 0:04:37.8]} 5. e5 {[%clk 0:04:43.2]} 5...
dxe5 {[%clk 0:04:34.8]} 6. dxe5 {[%clk 0:04:41.9]} 6... Nfd7 {[%clk 0:04:30.7]}
7. e6 {[%clk 0:04:32.8]} 7... fxe6 {[%clk 0:04:25.8]} 8. Bxe6 {[%clk 0:04:30.7]}
8... Nc6 {[%clk 0:04:16.3]} 9. Nf3 {[%clk 0:04:17.9]} 9... Nce5 {[%clk
0:03:41.8]} 10. Nxe5 {[%clk 0:04:12]} 10... Nxe5 {[%clk 0:03:39.1]} 11. Qxd8+
{[%clk 0:04:04.2]} 11... Kxd8 {[%clk 0:03:37.4]} 12. O-O {[%clk 0:04:03.3]}
12... Bxe6 {[%clk 0:03:34.3]} 13. Bf4 {[%clk 0:03:53.1]} 13... Ke8 {[%clk
0:03:32.1]} 14. Bxe5 {[%clk 0:03:50.3]} 14... Bxe5 {[%clk 0:03:29.7]} 15. Rfe1
{[%clk 0:03:49.7]} 15... Bxc3 {[%clk 0:03:27.1]} 16. bxc3 {[%clk 0:03:42.1]}
16... Bd7 {[%clk 0:03:17]} 17. Re4 {[%clk 0:03:37]} 17... e6 {[%clk 0:03:12.5]}
18. Rb1 {[%clk 0:03:30.6]} 18... b6 {[%clk 0:03:06.8]} 19. f4 {[%clk 0:03:28]}
19... Kf7 {[%clk 0:03:03.3]} 20. g4 {[%clk 0:03:23.2]} 20... Kg7 {[%clk
0:03:00.8]} 21. h4 {[%clk 0:03:21.8]} 21... Rhf8 {[%clk 0:02:57.4]} 22. Kg2
{[%clk 0:03:18.9]} 22... Rf7 {[%clk 0:02:53.7]} 23. Kg3 {[%clk 0:03:17.2]} 23...
Raf8 {[%clk 0:02:51.7]} 24. Rf1 {[%clk 0:03:12.6]} 24... Bc6 {[%clk 0:02:49.8]}
25. Rd4 {[%clk 0:03:10.5]} 25... Bb7 {[%clk 0:02:43.9]} 26. Ra4 {[%clk
0:03:05.7]} 26... a5 {[%clk 0:02:39.4]} 27. Rc4 {[%clk 0:03:02.1]} 27... Rd7
{[%clk 0:02:32.8]} 28. Rf2 {[%clk 0:02:53]} 28... Rfd8 {[%clk 0:02:30.7]} 29.
Re4 {[%clk 0:02:49.8]} 29... Kf7 {[%clk 0:02:22.9]} 30. Re3 {[%clk 0:02:46.6]}
30... Rd2 {[%clk 0:02:15.8]} 31. Ree2 {[%clk 0:02:40.9]} 31... Rxe2 {[%clk
0:02:11.6]} 32. Rxe2 {[%clk 0:02:39.2]} 32... Bd5 {[%clk 0:02:07.2]} 33. Rd2
{[%clk 0:02:28.4]} 33... Rd6 {[%clk 0:02:04.2]} 34. h5 {[%clk 0:02:14.6]} 34...
Bxa2 {[%clk 0:01:57.8]} 35. hxg6+ {[%clk 0:02:07.4]} 35... hxg6 {[%clk
0:01:55.5]} 36. Rh2 {[%clk 0:02:05]} 36... Kg7 {[%clk 0:01:49.5]} 37. f5 {[%clk
0:01:56]} 37... exf5 {[%clk 0:01:44.6]} 38. gxf5 {[%clk 0:01:54.8]} 38... gxf5
{[%clk 0:01:41.6]} 39. Kf4 {[%clk 0:01:53.4]} 39... Be6 {[%clk 0:01:35.1]} 40.
Rg2+ {[%clk 0:01:50]} 40... Kf6 {[%clk 0:01:29.4]} 41. Rh2 {[%clk 0:01:44.5]}
41... Bf7 {[%clk 0:01:19.6]} 42. Rh6+ {[%clk 0:01:39.7]} 42... Bg6 {[%clk
0:01:16.4]} 43. Rh8 {[%clk 0:01:33.5]} 43... Rc6 {[%clk 0:01:14.2]} 44. Rf8+
{[%clk 0:01:30.2]} 44... Kg7 {[%clk 0:01:11.7]} 45. Rd8 {[%clk 0:01:22.8]} 45...
Rxc3 {[%clk 0:01:06.3]} 46. Kg5 {[%clk 0:01:19.7]} 46... Rxc2 {[%clk 0:01:04]}
47. Rd7+ {[%clk 0:01:17.8]} 47... Kf8 {[%clk 0:00:58.5]} 48. Kxg6 {[%clk
0:01:15.5]} 48... f4 {[%clk 0:00:55.9]} 49. Kf6 {[%clk 0:01:11.4]} 49... Rc6+
{[%clk 0:00:48.1]} 50. Kf5 {[%clk 0:01:07.3]} 50... f3 {[%clk 0:00:46.7]} 51.
Rd8+ {[%clk 0:00:55.7]} 51... Ke7 {[%clk 0:00:46.6]} 52. Rd1 {[%clk 0:00:53.5]}
52... f2 {[%clk 0:00:38.9]} 53. Rf1 {[%clk 0:00:52.6]} 53... Rf6+ {[%clk
0:00:35]} 54. Ke5 {[%clk 0:00:50.3]} 54... a4 {[%clk 0:00:32]} 55. Kd4 {[%clk
0:00:48.9]} 55... a3 {[%clk 0:00:30.2]} 56. Kc3 {[%clk 0:00:48.1]} 56... Rf3+
{[%clk 0:00:24.9]} 57. Kc2 {[%clk 0:00:44.8]} 57... b5 {[%clk 0:00:22.7]} 58.
Kd2 {[%clk 0:00:36.6]} 58... b4 {[%clk 0:00:21.2]} 59. Ke2 {[%clk 0:00:35.4]}
59... Rf4 {[%clk 0:00:13.6]} 60. Kd2 {[%clk 0:00:32.3]} 60... b3 {[%clk
0:00:09.6]} 61. Kc3 {[%clk 0:00:29.8]} 61... a2 {[%clk 0:00:09.2]} 62. Kxb3
{[%clk 0:00:27.1]} 62... a1=Q {[%clk 0:00:06.6]} 63. Rxa1 {[%clk 0:00:24.9]}
63... f1=Q {[%clk 0:00:06.5]} 64. Rxf1 {[%clk 0:00:22.7]} 64... Rxf1 {[%clk
0:00:06.4]} 65. Kc3 {[%clk 0:00:21.2]} 65... Kd6 {[%clk 0:00:06.3]} 66. Kd2
{[%clk 0:00:19.4]} 66... Rf5 {[%clk 0:00:06.2]} 67. Kc3 {[%clk 0:00:18.4]} 67...
Rc5+ {[%clk 0:00:06.1]} 68. Kd4 {[%clk 0:00:17.3]} 68... Rb5 {[%clk 0:00:06]}
69. Kc4 {[%clk 0:00:16.5]} 69... Rb6 {[%clk 0:00:05.9]} 70. Kd4 {[%clk
0:00:15.5]} 70... Kc6 {[%clk 0:00:05.4]} 71. Kc4 {[%clk 0:00:14.8]} 71... Rb5
{[%clk 0:00:04]} 72. Kd4 {[%clk 0:00:13.2]} 72... Rc5 {[%clk 0:00:03.9]} 73. Kd3
{[%clk 0:00:12]} 73... Rd5+ {[%clk 0:00:03.8]} 74. Kc4 {[%clk 0:00:11.4]} 74...
Rd7 {[%clk 0:00:03.7]} 75. Kc3 {[%clk 0:00:09.7]} 75... Kb6 {[%clk 0:00:03.6]}
76. Kc4 {[%clk 0:00:08.5]} 76... c6 {[%clk 0:00:03.5]} 77. Kc3 {[%clk
0:00:06.9]} 77... Rd5 {[%clk 0:00:02.5]} 78. Kc4 {[%clk 0:00:06.5]} 78... Ka6
{[%clk 0:00:01.1]} 79. Kc3 {[%clk 0:00:06.1]} 79... Ka5 {[%clk 0:00:00.7]} 80.
Kc4 {[%clk 0:00:05.5]} 80... Ka4 {[%clk 0:00:00.6]} 81. Kc3 {[%clk 0:00:05.1]}
81... Ka3 {[%clk 0:00:00.1]} 82. Kc4 {[%clk 0:00:04.9]} 1/2-1/2

[Event "Live Chess"]
[Site "Chess.com"]
[Date "2023.05.20"]
[Round "-"]
[White "LutherSullivan"]
[Black "FlyingChessKestrel13"]
[Result "1-0"]
[WhiteElo "2092"]
[BlackElo "2111"]
[TimeControl "300"]
[EndTime "14:12:33 PDT"]
[Termination "LutherSullivan won by resignation"]

1. e4 {[%clk 0:04:58.2]} 1... c5 {[%clk 0:04:57.2]} 2. Nf3 {[%clk 0:04:56.8]}
2... Nc6 {[%clk 0:04:56.1]} 3. Bb5 {[%clk 0:04:53.3]} 3... e6 {[%clk 0:04:54.7]}
4. Bxc6 {[%clk 0:04:50.4]} 4... bxc6 {[%clk 0:04:53.7]} 5. O-O {[%clk
0:04:49.3]} 5... Nf6 {[%clk 0:04:52.1]} 6. Re1 {[%clk 0:04:48]} 6... d5 {[%clk
0:04:49.6]} 7. d3 {[%clk 0:04:46.3]} 7... Be7 {[%clk 0:04:48.3]} 8. Nbd2 {[%clk
0:04:43.5]} 8... O-O {[%clk 0:04:46.5]} 9. b3 {[%clk 0:04:42.6]} 9... Ba6 {[%clk
0:04:42.7]} 10. Bb2 {[%clk 0:04:41.7]} 10... c4 {[%clk 0:04:41.2]} 11. Ne5
{[%clk 0:04:30.7]} 11... cxd3 {[%clk 0:04:36.8]} 12. cxd3 {[%clk 0:04:17.5]}
12... Qc7 {[%clk 0:04:32.5]} 13. Rc1 {[%clk 0:04:13.6]} 13... c5 {[%clk
0:04:26.6]} 14. d4 {[%clk 0:04:04]} 14... Bd6 {[%clk 0:04:21.1]} 15. exd5 {[%clk
0:03:55.8]} 15... exd5 {[%clk 0:04:14]} 16. dxc5 {[%clk 0:03:52.9]} 16... Bxc5
{[%clk 0:04:11]} 17. Bd4 {[%clk 0:03:47.3]} 1-0

[Event "Live Chess"]
[Site "Chess.com"]
[Date "2023.05.20"]
[Round "-"]
[White "Conradical12"]
[Black "wadsy27"]
[Result "0-1"]
[WhiteElo "1582"]
[BlackElo "2555"]
[TimeControl "300"]
[EndTime "14:12:47 PDT"]
[Termination "wadsy27 won by resignation"]

1. e4 {[%clk 0:04:56.7]} 1... e6 {[%clk 0:04:58]} 2. d4 {[%clk 0:04:54.7]} 2...
d5 {[%clk 0:04:57.9]} 3. exd5 {[%clk 0:04:52.8]} 3... exd5 {[%clk 0:04:56.8]} 4.
Nf3 {[%clk 0:04:51.7]} 4... Nc6 {[%clk 0:04:14.8]} 5. Be3 {[%clk 0:04:48.1]}
5... Bg4 {[%clk 0:04:06.5]} 6. Bd3 {[%clk 0:04:47.1]} 6... Qd7 {[%clk
0:04:01.7]} 7. Nbd2 {[%clk 0:04:46.2]} 7... Bd6 {[%clk 0:03:58.6]} 8. c3 {[%clk
0:04:45]} 8... Nge7 {[%clk 0:03:57.4]} 9. Qc2 {[%clk 0:04:44.9]} 9... Bh5 {[%clk
0:03:50.1]} 10. O-O-O {[%clk 0:04:43.5]} 10... Bg6 {[%clk 0:03:47.5]} 11. Rde1
{[%clk 0:04:38.8]} 11... O-O-O {[%clk 0:03:44.8]} 12. h3 {[%clk 0:04:32.2]}
12... Bxd3 {[%clk 0:03:42.1]} 13. Qxd3 {[%clk 0:04:30.6]} 13... Qf5 {[%clk
0:03:37.5]} 14. Qe2 {[%clk 0:04:25.5]} 14... Ng6 {[%clk 0:03:29.4]} 15. g4
{[%clk 0:04:22.8]} 15... Qd7 {[%clk 0:03:27]} 16. Ne5 {[%clk 0:04:15.2]} 16...
Ngxe5 {[%clk 0:03:20.7]} 17. dxe5 {[%clk 0:04:14.2]} 17... Bxe5 {[%clk
0:03:19.9]} 18. f4 {[%clk 0:04:12.8]} 18... Bd6 {[%clk 0:03:16.5]} 19. Nb3
{[%clk 0:04:06.1]} 19... Rhe8 {[%clk 0:03:10.8]} 20. Qb5 {[%clk 0:04:02.2]}
20... a6 {[%clk 0:03:06.7]} 21. Qa4 {[%clk 0:04:00]} 21... Re4 {[%clk
0:02:59.4]} 22. Nd4 {[%clk 0:03:52.8]} 22... Nxd4 {[%clk 0:02:58.1]} 23. Qxd7+
{[%clk 0:03:50.4]} 23... Kxd7 {[%clk 0:02:52.9]} 24. Bxd4 {[%clk 0:03:45.8]}
24... Bxf4+ {[%clk 0:02:47.5]} 25. Kc2 {[%clk 0:03:41.1]} 25... Rxe1 {[%clk
0:02:45.6]} 26. Rxe1 {[%clk 0:03:39.2]} 26... f6 {[%clk 0:02:44]} 27. Re2 {[%clk
0:03:36.8]} 27... Re8 {[%clk 0:02:42]} 28. Rf2 {[%clk 0:03:33.2]} 28... Be3
{[%clk 0:02:40.4]} 29. Re2 {[%clk 0:03:27.6]} 29... Bxd4 {[%clk 0:02:38.7]} 30.
Rxe8 {[%clk 0:03:26.5]} 30... Kxe8 {[%clk 0:02:37.5]} 31. cxd4 {[%clk 0:03:26]}
31... Kf7 {[%clk 0:02:35.8]} 32. Kd3 {[%clk 0:03:25]} 32... Kg6 {[%clk
0:02:34.9]} 33. Ke3 {[%clk 0:03:24.1]} 33... h5 {[%clk 0:02:33.1]} 34. Kf4
{[%clk 0:03:21.3]} 34... hxg4 {[%clk 0:02:31.9]} 35. hxg4 {[%clk 0:03:20.6]}
35... Kf7 {[%clk 0:02:30.6]} 36. Kf5 {[%clk 0:03:18.4]} 36... g6+ {[%clk
0:02:29.7]} 37. Kf4 {[%clk 0:03:17.4]} 37... Ke6 {[%clk 0:02:29.1]} 38. g5
{[%clk 0:03:15.2]} 38... fxg5+ {[%clk 0:02:27.9]} 39. Kxg5 {[%clk 0:03:14.1]}
39... Kf7 {[%clk 0:02:27.8]} 40. Kf4 {[%clk 0:03:12.6]} 40... Kf6 {[%clk
0:02:27.1]} 41. Kg4 {[%clk 0:03:11.9]} 41... g5 {[%clk 0:02:26.1]} 42. Kf3
{[%clk 0:03:10.8]} 42... Kf5 {[%clk 0:02:25]} 43. b4 {[%clk 0:03:08.6]} 43... b5
{[%clk 0:02:23.2]} 44. a3 {[%clk 0:03:06.2]} 44... c6 {[%clk 0:02:21]} 45. Ke3
{[%clk 0:03:02.8]} 45... g4 {[%clk 0:02:19.7]} 46. Kf2 {[%clk 0:03:01.4]} 46...
Ke4 {[%clk 0:02:16.6]} 0-1

[Event "Live Chess"]
[Site "Chess.com"]
[Date "2023.05.20"]
[Round "-"]
[White "Ed_Knox"]
[Black "JohanKjeldahl"]
[Result "0-1"]
[WhiteElo "1489"]
[BlackElo "1852"]
[TimeControl "300"]
[EndTime "14:12:58 PDT"]
[Termination "JohanKjeldahl won by checkmate"]

1. d4 {[%clk 0:04:57.5]} 1... Nf6 {[%clk 0:04:57.6]} 2. Bf4 {[%clk 0:04:56.3]}
2... d6 {[%clk 0:04:56.1]} 3. e3 {[%clk 0:04:55.6]} 3... g6 {[%clk 0:04:54.5]}
4. Nf3 {[%clk 0:04:54.2]} 4... Bg7 {[%clk 0:04:54]} 5. Qd2 {[%clk 0:04:49.6]}
5... O-O {[%clk 0:04:52.3]} 6. Nc3 {[%clk 0:04:46.4]} 6... c6 {[%clk 0:04:50]}
7. O-O-O {[%clk 0:04:42.4]} 7... Nbd7 {[%clk 0:04:45.8]} 8. e4 {[%clk
0:04:37.4]} 8... a6 {[%clk 0:04:37.1]} 9. Bh6 {[%clk 0:04:36]} 9... b5 {[%clk
0:04:34.4]} 10. Bd3 {[%clk 0:04:31.5]} 10... b4 {[%clk 0:04:31.3]} 11. Na4
{[%clk 0:04:29.8]} 11... Qa5 {[%clk 0:04:23.7]} 12. b3 {[%clk 0:04:28.7]} 12...
c5 {[%clk 0:04:21.1]} 13. h4 {[%clk 0:04:14.9]} 13... cxd4 {[%clk 0:04:16.4]}
14. Nxd4 {[%clk 0:03:58]} 14... Ne5 {[%clk 0:03:57]} 15. Bxg7 {[%clk 0:03:46.4]}
15... Kxg7 {[%clk 0:03:54.9]} 16. f4 {[%clk 0:03:23.8]} 16... Nxd3+ {[%clk
0:03:51]} 17. Qxd3 {[%clk 0:03:22.2]} 17... Bd7 {[%clk 0:03:46.4]} 18. e5 {[%clk
0:02:19.8]} 18... dxe5 {[%clk 0:03:35.3]} 19. fxe5 {[%clk 0:02:18.4]} 19... Nd5
{[%clk 0:03:20.9]} 20. e6 {[%clk 0:01:43.2]} 20... Bxa4 {[%clk 0:03:10.5]} 21.
exf7 {[%clk 0:01:31]} 21... Bd7 {[%clk 0:03:03.8]} 22. Nf5+ {[%clk 0:01:02]}
22... Bxf5 {[%clk 0:03:00.2]} 23. Qxd5 {[%clk 0:00:57.9]} 23... Qxd5 {[%clk
0:02:55.6]} 24. Rxd5 {[%clk 0:00:56.7]} 24... Rxf7 {[%clk 0:02:52.9]} 25. Rhd1
{[%clk 0:00:55.6]} 25... Rc8 {[%clk 0:02:48.5]} 26. R1d2 {[%clk 0:00:52.4]}
26... Be4 {[%clk 0:02:32.4]} 27. Rg5 {[%clk 0:00:42.5]} 27... Rf1+ {[%clk
0:02:29.3]} 28. Kb2 {[%clk 0:00:41.2]} 28... Rf5 {[%clk 0:02:21.3]} 29. Rg4
{[%clk 0:00:38.4]} 29... Bc6 {[%clk 0:01:58.3]} 30. Re2 {[%clk 0:00:33.8]} 30...
Rf7 {[%clk 0:01:51.2]} 31. Re6 {[%clk 0:00:32.1]} 31... Bb5 {[%clk 0:01:47.8]}
32. h5 {[%clk 0:00:30.1]} 32... Rc6 {[%clk 0:01:39.4]} 33. Re5 {[%clk
0:00:19.6]} 33... Kf6 {[%clk 0:01:33.1]} 34. Re3 {[%clk 0:00:13.1]} 34... e5
{[%clk 0:01:26.7]} 35. Rf3+ {[%clk 0:00:11.1]} 35... Kg7 {[%clk 0:01:25.2]} 36.
Rh3 {[%clk 0:00:08.8]} 36... Rf2 {[%clk 0:01:18.3]} 37. hxg6 {[%clk 0:00:07.2]}
37... Rfxc2+ {[%clk 0:01:12.3]} 38. Kb1 {[%clk 0:00:04.2]} 38... Rc1+ {[%clk
0:01:11.2]} 39. Kb2 {[%clk 0:00:03.3]} 39... R6c2# {[%clk 0:01:10.1]} 0-1

[Event "Live Chess"]
[Site "Chess.com"]
[Date "2023.05.20"]
[Round "-"]
[White "bristolunichess"]
[Black "SupremeTactician"]
[Result "0-1"]
[WhiteElo "1817"]
[BlackElo "2364"]
[TimeControl "300"]
[EndTime "14:13:02 PDT"]
[Termination "SupremeTactician won by resignation"]

1. e3 {[%clk 0:04:57.9]} 1... e6 {[%clk 0:04:58.1]} 2. d4 {[%clk 0:04:56.8]}
2... b6 {[%clk 0:04:57.5]} 3. Be2 {[%clk 0:04:53.9]} 3... Bb7 {[%clk 0:04:56.6]}
4. Bf3 {[%clk 0:04:53.6]} 4... Bxf3 {[%clk 0:04:55.8]} 5. Nxf3 {[%clk
0:04:53.5]} 5... c6 {[%clk 0:04:55.3]} 6. O-O {[%clk 0:04:53.1]} 6... d5 {[%clk
0:04:54.9]} 7. c3 {[%clk 0:04:51.9]} 7... Bd6 {[%clk 0:04:54.5]} 8. Qd3 {[%clk
0:04:51.5]} 8... Ne7 {[%clk 0:04:54.1]} 9. g3 {[%clk 0:04:50.9]} 9... Ng6 {[%clk
0:04:53.7]} 10. Bd2 {[%clk 0:04:49.8]} 10... h5 {[%clk 0:04:53.4]} 11. h4 {[%clk
0:04:48]} 11... Qf6 {[%clk 0:04:51.2]} 12. Kg2 {[%clk 0:04:45.6]} 12... Nd7
{[%clk 0:04:50]} 13. e4 {[%clk 0:04:44.1]} 13... e5 {[%clk 0:04:38.2]} 14. exd5
{[%clk 0:04:41.6]} 14... cxd5 {[%clk 0:04:33.5]} 15. dxe5 {[%clk 0:04:40.9]}
15... Ndxe5 {[%clk 0:04:32.7]} 16. Nxe5 {[%clk 0:04:40.8]} 16... Nxe5 {[%clk
0:04:31.7]} 17. Qxd5 {[%clk 0:04:39]} 17... O-O {[%clk 0:04:30.7]} 18. Bf4
{[%clk 0:04:38.2]} 18... Rad8 {[%clk 0:04:26.6]} 19. Qe4 {[%clk 0:04:32.4]}
19... Rfe8 {[%clk 0:04:23.3]} 20. Qc2 {[%clk 0:04:30.8]} 20... Ng4 {[%clk
0:04:09.2]} 21. Bxd6 {[%clk 0:04:26.5]} 21... Rxd6 {[%clk 0:04:05.3]} 22. Na3
{[%clk 0:04:25.4]} 22... Rde6 {[%clk 0:03:59.4]} 23. Rad1 {[%clk 0:04:16.5]}
23... Re2 {[%clk 0:03:53.6]} 24. Rd2 {[%clk 0:04:15.9]} 24... Ne3+ {[%clk
0:03:45.2]} 25. Kg1 {[%clk 0:04:12.8]} 25... Nxc2 {[%clk 0:03:43]} 26. Rxc2
{[%clk 0:04:10.2]} 26... Rxc2 {[%clk 0:03:41.2]} 27. Nxc2 {[%clk 0:04:10.1]}
27... Re2 {[%clk 0:03:29.8]} 28. Nd4 {[%clk 0:04:06.3]} 28... Rxb2 {[%clk
0:03:28]} 29. Kg2 {[%clk 0:04:00]} 29... Rxa2 {[%clk 0:03:19.4]} 0-1

[Event "Live Chess"]
[Site "Chess.com"]
[Date "2023.05.20"]
[Round "-"]
[White "AttackingSnowLeopard"]
[Black "defenderalist"]
[Result "1-0"]
[WhiteElo "2067"]
[BlackElo "1619"]
[TimeControl "300"]
[EndTime "14:13:02 PDT"]
[Termination "AttackingSnowLeopard won by resignation"]

1. Nf3 {[%clk 0:04:55.9]} 1... b6 {[%clk 0:04:57.9]} 2. d4 {[%clk 0:04:53.7]}
2... Bb7 {[%clk 0:04:57]} 3. g3 {[%clk 0:04:53]} 3... g6 {[%clk 0:04:56.3]} 4.
Bg2 {[%clk 0:04:52]} 4... Bg7 {[%clk 0:04:55.8]} 5. O-O {[%clk 0:04:51.5]} 5...
e6 {[%clk 0:04:51.2]} 6. c4 {[%clk 0:04:51]} 6... Ne7 {[%clk 0:04:49.5]} 7. Nc3
{[%clk 0:04:50.2]} 7... O-O {[%clk 0:04:48.5]} 8. e4 {[%clk 0:04:49.3]} 8... c5
{[%clk 0:04:40.6]} 9. d5 {[%clk 0:04:47.6]} 9... exd5 {[%clk 0:04:39.1]} 10.
exd5 {[%clk 0:04:46.6]} 10... d6 {[%clk 0:04:32.2]} 11. Bf4 {[%clk 0:04:44.3]}
11... Nf5 {[%clk 0:04:26.6]} 12. Qd2 {[%clk 0:04:42.8]} 12... Na6 {[%clk
0:04:16.1]} 13. Rae1 {[%clk 0:04:39.8]} 13... Nb4 {[%clk 0:04:10.1]} 14. a3
{[%clk 0:04:36]} 14... Na6 {[%clk 0:04:08.3]} 15. g4 {[%clk 0:04:30.9]} 15...
Nh4 {[%clk 0:03:58.5]} 16. Nxh4 {[%clk 0:04:29.4]} 16... Qxh4 {[%clk 0:03:56.7]}
17. Bxd6 {[%clk 0:04:27.8]} 17... Rfe8 {[%clk 0:03:46.1]} 18. h3 {[%clk
0:04:24.3]} 18... b5 {[%clk 0:03:32.4]} 19. Bg3 {[%clk 0:04:16.8]} 19... bxc4
{[%clk 0:03:29.8]} 20. Bxh4 {[%clk 0:04:14.9]} 1-0

[Event "Live Chess"]
[Site "Chess.com"]
[Date "2023.05.20"]
[Round "-"]
[White "Inglaterra"]
[Black "blunderabit"]
[Result "1-0"]
[WhiteElo "2039"]
[BlackElo "1840"]
[TimeControl "300"]
[EndTime "14:13:11 PDT"]
[Termination "Inglaterra won on time"]

1. e4 {[%clk 0:04:57.9]} 1... c5 {[%clk 0:04:57.6]} 2. Nf3 {[%clk 0:04:57.3]}
2... d6 {[%clk 0:04:56.3]} 3. c3 {[%clk 0:04:56.7]} 3... Nf6 {[%clk 0:04:53.1]}
4. Bd3 {[%clk 0:04:55.6]} 4... Nc6 {[%clk 0:04:50.4]} 5. O-O {[%clk 0:04:54.4]}
5... d5 {[%clk 0:04:47.2]} 6. e5 {[%clk 0:04:51.2]} 6... Nd7 {[%clk 0:04:46]} 7.
Re1 {[%clk 0:04:49.5]} 7... e6 {[%clk 0:04:42.2]} 8. Bc2 {[%clk 0:04:45.9]} 8...
Qc7 {[%clk 0:04:40.8]} 9. d4 {[%clk 0:04:45.2]} 9... cxd4 {[%clk 0:04:39]} 10.
cxd4 {[%clk 0:04:45.1]} 10... Be7 {[%clk 0:04:29.7]} 11. Nc3 {[%clk 0:04:43.5]}
11... a6 {[%clk 0:04:26.9]} 12. a3 {[%clk 0:04:42.2]} 12... b5 {[%clk
0:04:22.6]} 13. Bg5 {[%clk 0:04:36.8]} 13... Bb7 {[%clk 0:04:05.5]} 14. Rc1
{[%clk 0:04:29.2]} 14... Qb6 {[%clk 0:04:00.5]} 15. h4 {[%clk 0:04:05]} 15... h6
{[%clk 0:03:55.6]} 16. Bxe7 {[%clk 0:04:00.3]} 16... Nxe7 {[%clk 0:03:53.2]} 17.
Bd3 {[%clk 0:03:41.7]} 17... Rc8 {[%clk 0:03:48.3]} 18. Qd2 {[%clk 0:03:38.8]}
18... Bc6 {[%clk 0:03:40.2]} 19. h5 {[%clk 0:03:37.2]} 19... a5 {[%clk
0:03:33.2]} 20. b4 {[%clk 0:03:30.4]} 20... axb4 {[%clk 0:03:29.4]} 21. axb4
{[%clk 0:03:30.3]} 21... O-O {[%clk 0:03:17]} 22. Nh4 {[%clk 0:03:25.1]} 22...
Kh8 {[%clk 0:03:00.8]} 23. Bb1 {[%clk 0:03:22.7]} 23... Rfd8 {[%clk 0:02:54.1]}
24. Kh1 {[%clk 0:03:13.5]} 24... Bb7 {[%clk 0:02:48.2]} 25. f4 {[%clk
0:03:08.3]} 25... Rc4 {[%clk 0:02:41.7]} 26. Nf3 {[%clk 0:03:01.5]} 26... Nf5
{[%clk 0:02:33.7]} 27. Bxf5 {[%clk 0:02:57.5]} 27... exf5 {[%clk 0:02:31.7]} 28.
Qd3 {[%clk 0:02:48.3]} 28... g6 {[%clk 0:02:23.7]} 29. e6 {[%clk 0:02:38.9]}
29... fxe6 {[%clk 0:02:20.8]} 30. hxg6 {[%clk 0:02:37.5]} 30... Rg8 {[%clk
0:02:06.5]} 31. Nh4 {[%clk 0:02:08.6]} 31... Rxd4 {[%clk 0:01:56.8]} 32. Qh3
{[%clk 0:02:05.6]} 32... Kg7 {[%clk 0:01:36.9]} 33. Rxe6 {[%clk 0:01:49.6]}
33... Qxe6 {[%clk 0:01:22.7]} 34. Nxf5+ {[%clk 0:01:48.7]} 34... Kf6 {[%clk
0:01:01.1]} 35. Nxd4 {[%clk 0:01:42]} 35... Qxh3+ {[%clk 0:00:58.5]} 36. gxh3
{[%clk 0:01:41.4]} 36... Nb6 {[%clk 0:00:47.4]} 37. Ncxb5 {[%clk 0:01:38]} 37...
Nc4 {[%clk 0:00:46]} 38. f5 {[%clk 0:01:33.3]} 38... Re8 {[%clk 0:00:41.1]} 39.
Kg2 {[%clk 0:01:16.8]} 39... Re4 {[%clk 0:00:38.5]} 40. Ra1 {[%clk 0:01:08.3]}
40... Ne3+ {[%clk 0:00:36.7]} 41. Kf3 {[%clk 0:01:04.9]} 41... Nxf5 {[%clk
0:00:36.2]} 42. Nxf5 {[%clk 0:01:00.3]} 42... Kxf5 {[%clk 0:00:33.8]} 43. Nd6+
{[%clk 0:00:59.2]} 43... Kxg6 {[%clk 0:00:27.5]} 44. Nxe4 {[%clk 0:00:58.1]}
44... dxe4+ {[%clk 0:00:25.8]} 45. Kf4 {[%clk 0:00:57.8]} 45... e3 {[%clk
0:00:16.5]} 46. Re1 {[%clk 0:00:52.1]} 46... Bc8 {[%clk 0:00:11.6]} 47. Rxe3
{[%clk 0:00:50.9]} 47... Kh5 {[%clk 0:00:09.5]} 48. b5 {[%clk 0:00:47]} 48...
Bb7 {[%clk 0:00:07.2]} 49. b6 {[%clk 0:00:46.2]} 49... Kh4 {[%clk 0:00:05]} 50.
Re6 {[%clk 0:00:42.2]} 50... Kxh3 {[%clk 0:00:00.3]} 51. Rxh6+ {[%clk
0:00:41.1]} 1-0